bitfinex-derivatives/quotes_BTCF0:USTF0_20241213
["timestamp","ask_amount","ask_price","bid_price","bid_amount"]
[1734115050864,0.13705663,101850.0,101840.0,0.480589]
[1734115051173,0.22969265,101850.0,101840.0,0.049089]
[1734115051374,0.049084,101850.0,101840.0,0.049089]
[1734115051770,0.443484,101850.0,101840.0,0.049089]
[1734115052170,0.45310473,101850.0,101840.0,0.049089]
[1734115052482,0.54577778,101850.0,101840.0,0.049089]
[1734115053170,0.69282696,101850.0,101840.0,0.049089]
[1734115053372,0.69282696,101850.0,101830.0,0.3608]
[1734115053373,0.049089,101840.0,101830.0,0.409893]
[1734115053672,0.1375979,101840.0,101830.0,0.409893]
[1734115056172,0.0885089,101840.0,101830.0,0.409893]
[1734115056377,0.0005,101840.0,101830.0,1.00256605]
[1734115056583,0.0005,101840.0,101830.0,1.23629869]
[1734115056777,0.0005,101840.0,101830.0,1.93629869]
[1734115056969,0.0005,101840.0,101830.0,2.43629869]
[1734115057175,0.0005,101840.0,101830.0,1.93629869]
[1734115058282,0.0005,101840.0,101830.0,1.70256605]
[1734115060182,0.049589,101840.0,101830.0,1.70256605]
[1734115060484,0.0005,101840.0,101830.0,1.70256605]
[1734115060680,0.1370929,101850.0,101840.0,0.049089]
[1734115060981,0.1370929,101850.0,101840.0,0.409889]
[1734115061678,0.1375929,101850.0,101840.0,0.409889]
[1734115062586,0.1370929,101850.0,101840.0,0.409889]
[1734115063685,0.1375929,101850.0,101840.0,0.409889]
[1734115064182,0.0005,101850.0,101840.0,0.409889]
[1734115064388,0.0885089,101850.0,101840.0,0.409889]
[1734115064683,0.0880089,101850.0,101840.0,0.53686205]
[1734115065080,0.0880089,101850.0,101840.0,1.73686205]
[1734115065679,0.1375929,101850.0,101840.0,1.73686205]
[1734115066081,0.049094,101830.0,101820.0,0.409895]
[1734115066277,0.049094,101830.0,101810.0,0.51037411]
[1734115066278,0.049098,101820.0,101810.0,0.51037411]
[1734115066475,0.049098,101820.0,101810.0,0.61301792]
[1734115066672,0.049098,101820.0,101810.0,0.51037411]
[1734115066875,0.13695898,101820.0,101810.0,0.47787411]
[1734115067181,0.13695898,101820.0,101810.0,0.44447411]
[1734115068081,0.13695898,101820.0,101810.0,0.53714716]
[1734115069478,0.13695898,101820.0,101810.0,0.17634716]
[1734115069785,0.13695898,101820.0,101810.0,0.00147311]
[1734115069786,0.49775898,101820.0,101810.0,0.00147311]
[1734115069982,0.14915827,101820.0,101810.0,0.05057611]
[1734115070182,0.13695898,101820.0,101810.0,0.14324916]
[1734115072286,0.08794681,101830.0,101820.0,0.049098]
[1734115072477,0.08794681,101830.0,101820.0,0.57097105]
[1734115072682,0.13703681,101840.0,101830.0,0.049094]
[1734115072884,0.08794681,101840.0,101830.0,0.409894]
[1734115073088,0.13703581,101840.0,101830.0,0.409894]
[1734115074278,0.049089,101840.0,101830.0,0.409894]
[1734115074480,0.13705345,101840.0,101830.0,0.442994]
[1734115074685,0.13705345,101840.0,101830.0,0.53566705]
[1734115077992,0.13705345,101840.0,101830.0,0.442994]
[1734115083196,0.049089,101840.0,101830.0,0.442994]
[1734115084285,0.13705345,101840.0,101830.0,0.442994]
[1734115084791,0.049089,101840.0,101830.0,0.442994]
[1734115085195,0.23945978,101850.0,101840.0,0.049089]
[1734115085496,0.15149533,101850.0,101840.0,0.409889]
[1734115087191,0.65405538,101850.0,101830.0,0.0331]
[1734115087393,0.049094,101830.0,101820.0,1.678297]
[1734115087593,0.14176705,101830.0,101820.0,1.678297]
[1734115087797,0.22979429,101830.0,101820.0,1.678297]
[1734115088593,0.22979429,101830.0,101820.0,0.478297]
[1734115088791,0.22979429,101830.0,101820.0,0.409897]
[1734115092902,0.13712124,101830.0,101820.0,0.50257005]
[1734115093092,0.049094,101830.0,101820.0,0.60687005]
[1734115093292,0.049094,101830.0,101820.0,0.514197]
[1734115093489,0.049094,101830.0,101820.0,0.74792964]
[1734115094003,0.13712124,101830.0,101820.0,0.74792964]
[1734115094496,0.13712124,101830.0,101820.0,1.94792964]
[1734115095999,0.13712124,101830.0,101820.0,1.714197]
[1734115096998,0.13712124,101830.0,101820.0,1.94792964]
[1734115098404,0.13712124,101830.0,101820.0,2.04060269]
[1734115099192,0.08802724,101830.0,101820.0,2.04060269]
[1734115099395,0.18068909,101840.0,101820.0,2.54060269]
[1734115099595,0.18068909,101840.0,101830.0,0.409894]
[1734115099811,0.14688909,101840.0,101830.0,0.409894]
[1734115101202,0.05886185,101840.0,101830.0,0.409894]
[1734115101402,0.20591103,101840.0,101830.0,0.409894]
[1734115102303,0.20591103,101840.0,101830.0,0.64362664]
[1734115106601,0.14708023,101840.0,101830.0,0.64362664]
[1734115107111,0.05886185,101840.0,101830.0,0.64362664]
[1734115107313,0.11961625,101840.0,101830.0,0.64362664]
[1734115107511,0.26666543,101840.0,101830.0,0.64362664]
[1734115108207,0.20591103,101840.0,101830.0,0.34358104]
[1734115108415,0.05886185,101840.0,101830.0,0.70438104]
[1734115110216,0.25687728,101850.0,101840.0,0.049089]
[1734115110511,0.25687728,101850.0,101840.0,0.70437604]
[1734115111115,0.26705347,101850.0,101840.0,0.4706434]
[1734115111609,0.15721307,101850.0,101840.0,0.5313978]
[1734115111817,0.2748304,101850.0,101840.0,0.86923044]
[1734115112109,0.3732389,101860.0,101840.0,2.91090231]
[1734115112309,0.19661688,101860.0,101850.0,0.70437104]
[1734115112517,0.19611288,101870.0,101850.0,1.05770831]
[1734115112708,0.19611288,101870.0,101860.0,0.86902044]
[1734115112906,0.049076,101870.0,101860.0,0.86902044]
[1734115113102,0.53705841,101880.0,101870.0,0.049074]
[1734115113307,0.23128199,101880.0,101870.0,0.049074]
[1734115113518,0.23128199,101880.0,101870.0,0.14157559]
[1734115113519,0.20741904,101880.0,101870.0,0.14157559]
[1734115113810,0.20741904,101880.0,101870.0,1.249074]
[1734115114407,0.15834704,101880.0,101870.0,1.34157559]
[1734115114613,0.01131016,101880.0,101870.0,1.70237559]
[1734115114816,0.06087916,101880.0,101870.0,1.70237559]
[1734115115219,0.05940605,101880.0,101870.0,1.70237559]
[1734115115609,0.06070406,101880.0,101870.0,1.70237559]
[1734115115906,0.06070406,101880.0,101870.0,1.609874]
[1734115116108,0.01163506,101880.0,101870.0,1.70237559]
[1734115116312,0.00179801,101880.0,101870.0,2.20237559]
[1734115117623,0.05086701,101880.0,101870.0,2.20237559]
[1734115118120,0.05086701,101880.0,101870.0,2.15330159]
[1734115118817,0.05086701,101880.0,101870.0,0.87065834]
[1734115119024,0.05086701,101880.0,101870.0,0.37065834]
[1734115120109,0.5041686,101880.0,101870.0,0.00985834]
[1734115120312,0.049074,101870.0,101860.0,0.4647]
[1734115120713,0.05037201,101870.0,101860.0,0.4647]
[1734115122120,0.05037201,101870.0,101860.0,0.1039]
[1734115123119,0.05037201,101870.0,101860.0,0.11411855]
[1734115125718,0.05037201,101870.0,101860.0,1.31411855]
[1734115127330,0.1428736,101870.0,101860.0,1.2]
[1734115127527,0.1794736,101870.0,101860.0,1.2]
[1734115128125,0.5402736,101870.0,101860.0,1.2]
[1734115128424,0.049084,101850.0,101830.0,0.59503264]
[1734115128626,0.1428886,101840.0,101830.0,0.0005]
[1734115128829,0.1428886,101840.0,101820.0,0.69155664]
[1734115128830,0.049094,101830.0,101820.0,0.69155664]
[1734115129027,0.049094,101830.0,101820.0,0.78405823]
[1734115129423,0.049094,101830.0,101820.0,1.64485823]
[1734115129629,0.05039201,101830.0,101820.0,1.87859087]
[1734115129828,0.05039201,101830.0,101820.0,1.78658928]
[1734115130434,0.05039201,101830.0,101820.0,1.55285664]
[1734115130628,0.05039201,101830.0,101820.0,1.05285664]
[1734115130827,0.05039201,101830.0,101820.0,1.05385664]
[1734115131028,0.05039201,101830.0,101820.0,1.06365879]
[1734115131939,0.1428936,101830.0,101820.0,1.01456179]
[1734115132135,0.1428936,101830.0,101820.0,0.40720215]
[1734115132640,0.1428936,101830.0,101820.0,0.04640215]
[1734115133032,0.5036936,101830.0,101820.0,0.04640215]
[1734115133931,0.5036936,101830.0,101820.0,0.0015]
[1734115134130,0.5379936,101830.0,101820.0,0.0015]
[1734115134434,0.68503048,101830.0,101820.0,0.0015]
[1734115134933,0.77753207,101830.0,101800.0,0.04359415]
[1734115135136,0.50240459,101810.0,101790.0,0.40998622]
[1734115135329,0.049108,101800.0,101790.0,0.40998622]
[1734115135533,0.44696769,101830.0,101800.0,0.049104]
[1734115135845,0.05039701,101820.0,101810.0,0.409899]
[1734115136030,0.05039701,101820.0,101810.0,0.443599]
[1734115136426,0.41119701,101820.0,101810.0,0.082799]
[1734115136640,0.05039701,101820.0,101810.0,0.512699]
[1734115136931,0.00129801,101820.0,101810.0,0.512699]
[1734115138532,0.00129801,101820.0,101810.0,1.10520059]
[1734115139338,0.45557511,101850.0,101830.0,0.049094]
[1734115139535,0.5480767,101850.0,101840.0,0.049089]
[1734115140035,0.5480767,101850.0,101830.0,0.148292]
[1734115140036,0.049089,101840.0,101830.0,0.148292]
[1734115140234,0.049094,101830.0,101820.0,0.049598]
[1734115140437,0.409894,101830.0,101820.0,0.049598]
[1734115141145,0.50239559,101830.0,101820.0,0.0005]
[1734115141341,0.53799559,101830.0,101820.0,0.0005]
[1734115142044,0.69723981,101830.0,101820.0,0.0005]
[1734115142543,0.049103,101810.0,101800.0,0.05057925]
[1734115142847,0.50240459,101810.0,101800.0,0.05057925]
[1734115143044,0.53530459,101810.0,101800.0,0.05057925]
[1734115143542,0.89610459,101810.0,101800.0,0.05057925]
[1734115144740,0.89610459,101810.0,101800.0,0.05107925]
[1734115145439,0.89610459,101810.0,101800.0,0.049606]
[1734115146742,0.4431,101820.0,101810.0,0.049103]
[1734115147245,0.394,101820.0,101810.0,0.049103]
[1734115147444,0.3608,101820.0,101810.0,0.14160459]
[1734115148149,0.3608,101820.0,101810.0,0.049103]
[1734115148340,0.3608,101820.0,101810.0,0.14160459]
[1734115149646,0.3618,101820.0,101810.0,0.14160459]
[1734115150048,0.3618,101820.0,101810.0,0.049103]
[1734115150240,0.410898,101820.0,101810.0,0.049103]
[1734115150547,0.50339959,101820.0,101810.0,0.049103]
[1734115150943,0.59590118,101820.0,101800.0,0.0005]
[1734115151248,0.57190459,101810.0,101800.0,0.049608]
[1734115151950,0.57190459,101810.0,101800.0,0.0005]
[1734115152739,0.479403,101810.0,101800.0,0.049608]
[1734115153148,0.57190459,101810.0,101800.0,0.049608]
[1734115154845,0.57190459,101810.0,101800.0,0.049108]
[1734115155748,0.57190459,101810.0,101790.0,0.0005]
[1734115155948,0.57190459,101810.0,101790.0,0.049611]
[1734115155949,0.409912,101800.0,101790.0,0.049611]
[1734115156548,0.50241359,101800.0,101790.0,0.049611]
[1734115156744,0.53651359,101800.0,101790.0,0.049111]
[1734115157452,0.54968438,101800.0,101790.0,0.049111]
[1734115157653,0.54968438,101800.0,101780.0,0.3949]
[1734115157852,0.53751359,101800.0,101790.0,0.0005]
[1734115158154,0.53651359,101800.0,101790.0,0.0005]
[1734115158351,0.69572126,101800.0,101790.0,0.0005]
[1734115158749,0.049113,101790.0,101780.0,0.409914]
[1734115160344,0.050113,101790.0,101780.0,0.409914]
[1734115160749,0.050113,101790.0,101780.0,0.410414]
[1734115161856,0.050113,101790.0,101780.0,0.409914]
[1734115162547,0.06228379,101790.0,101780.0,0.409914]
[1734115162856,0.15478538,101790.0,101780.0,0.410414]
[1734115163358,0.15378538,101790.0,101780.0,0.410414]
[1734115163547,0.15478538,101790.0,101780.0,0.410414]
[1734115163748,0.06228379,101790.0,101780.0,0.409914]
[1734115164559,0.01317079,101790.0,101780.0,0.86321559]
[1734115164857,0.01217079,101800.0,101790.0,0.049111]
[1734115165056,0.15920767,101810.0,101800.0,0.049108]
[1734115165355,0.01217079,101810.0,101800.0,0.74220959]
[1734115165555,0.01708182,101810.0,101800.0,0.74220959]
[1734115165859,0.01708182,101810.0,101800.0,0.24220959]
[1734115166058,0.01708182,101810.0,101800.0,0.74220959]
[1734115166354,0.01708182,101810.0,101800.0,0.24220959]
[1734115166555,0.01808182,101810.0,101800.0,0.60300959]
[1734115166755,0.01808182,101810.0,101800.0,1.27917703]
[1734115166756,0.01317079,101810.0,101800.0,1.27917703]
[1734115167350,0.001,101810.0,101800.0,1.27917703]
[1734115168063,0.20830967,101820.0,101810.0,0.049103]
[1734115168353,0.01217079,101820.0,101810.0,0.50240459]
[1734115168561,0.16118141,101830.0,101810.0,1.41230467]
[1734115168760,0.01414453,101830.0,101820.0,0.50239959]
[1734115168957,0.00197374,101830.0,101820.0,0.67856703]
[1734115169157,0.00197374,101830.0,101820.0,1.00239959]
[1734115169760,0.00147374,101830.0,101820.0,1.00239959]
[1734115170761,0.00197374,101830.0,101820.0,1.00239959]
[1734115171564,0.14209559,101830.0,101820.0,0.409898]
[1734115171759,0.049094,101830.0,101820.0,0.409898]
[1734115171956,0.56915422,101840.0,101830.0,0.049094]
[1734115172162,0.686465,101840.0,101830.0,0.049094]
[1734115172351,0.31344066,101840.0,101830.0,0.409894]
[1734115172555,0.16640378,101840.0,101830.0,0.409894]
[1734115172953,0.17862812,101840.0,101830.0,0.50239559]
[1734115173158,0.719657,101850.0,101830.0,1.00239559]
[1734115173360,0.719657,101850.0,101840.0,0.049089]
[1734115175373,0.57262012,101850.0,101840.0,0.049089]
[1734115176767,0.56039578,101850.0,101840.0,0.049089]
[1734115176966,0.56039578,101850.0,101840.0,0.14159059]
[1734115176967,0.52719578,101850.0,101840.0,0.14159059]
[1734115177268,0.77951037,101860.0,101840.0,0.14159059]
[1734115177269,0.82618272,101860.0,101850.0,0.049084]
[1734115177461,0.67914584,101860.0,101850.0,0.049084]
[1734115177655,0.69895004,101860.0,101850.0,0.049084]
[1734115179061,0.68674615,101860.0,101850.0,0.049084]
[1734115179262,0.59424456,101860.0,101850.0,0.049084]
[1734115179468,0.68674615,101860.0,101850.0,0.049084]
[1734115180165,0.049089,101840.0,101830.0,0.09502896]
[1734115180368,0.049094,101830.0,101810.0,0.4632]
[1734115180668,0.14159959,101820.0,101810.0,0.442801]
[1734115180966,0.049098,101820.0,101810.0,0.409901]
[1734115185976,0.049098,101820.0,101810.0,0.50240259]
[1734115186162,0.049098,101820.0,101810.0,0.409901]
[1734115188274,0.049098,101820.0,101810.0,0.50240259]
[1734115188465,0.049098,101820.0,101810.0,0.409901]
[1734115189578,0.20109678,101850.0,101840.0,0.049089]
[1734115189771,0.049586,101850.0,101840.0,0.50239059]
[1734115189968,0.0005,101850.0,101840.0,0.50239059]
[1734115190174,0.0005,101850.0,101840.0,1.00239059]
[1734115190972,0.04908,101860.0,101850.0,0.049084]
[1734115191173,0.04908,101860.0,101850.0,0.50238559]
[1734115191373,0.04908,101860.0,101850.0,1.00238559]
[1734115191569,0.04908,101860.0,101850.0,0.50238559]
[1734115191768,0.11878433,101870.0,101860.0,0.049079]
[1734115191969,0.00147355,101870.0,101860.0,0.409879]
[1734115192175,0.00147355,101870.0,101860.0,0.50238059]
[1734115192366,0.05054755,101870.0,101860.0,0.049079]
[1734115192777,0.14304914,101870.0,101860.0,0.049079]
[1734115192965,0.05054755,101870.0,101860.0,0.049079]
[1734115193169,0.41134755,101870.0,101860.0,0.049079]
[1734115193370,0.05054755,101870.0,101860.0,0.049079]
[1734115194573,0.16638478,101870.0,101860.0,0.049079]
[1734115194973,0.52718478,101870.0,101860.0,0.049079]
[1734115195173,0.16638478,101870.0,101860.0,0.049079]
[1734115195376,0.11731078,101870.0,101860.0,0.049079]
[1734115196471,0.47811078,101870.0,101860.0,0.049079]
[1734115196676,0.52718478,101870.0,101860.0,0.049079]
[1734115196978,0.16688478,101870.0,101860.0,0.049079]
[1734115197173,0.52768478,101870.0,101860.0,0.049079]
[1734115197875,0.16638478,101870.0,101860.0,0.049079]
[1734115198078,0.11731078,101870.0,101860.0,0.049079]
[1734115198276,0.363518,101880.0,101860.0,0.50238059]
[1734115198476,0.15011078,101880.0,101870.0,0.14157559]
[1734115198678,0.15011078,101880.0,101870.0,0.049074]
[1734115198980,0.55997978,101880.0,101870.0,0.049074]
[1734115199190,0.68350451,101880.0,101870.0,0.049074]
[1734115200575,0.80067657,101880.0,101870.0,0.049074]
[1734115200775,0.69570711,101880.0,101870.0,0.049074]
[1734115201781,0.69620711,101880.0,101870.0,0.049074]
[1734115202881,0.049077,101870.0,101860.0,0.049077]
[1734115203080,0.61953605,101870.0,101860.0,0.049077]
[1734115203280,0.5283315,101870.0,101860.0,0.049077]
[1734115204487,0.049082,101860.0,101850.0,0.049081]
[1734115204674,0.11715746,101860.0,101850.0,0.14158259]
[1734115204983,0.5283295,101870.0,101860.0,0.049079]
[1734115206293,0.1184545,101870.0,101860.0,0.50238059]
[1734115206484,0.00129704,101870.0,101860.0,0.64158059]
[1734115207095,0.05037104,101870.0,101860.0,0.049079]
[1734115207592,0.00129704,101870.0,101860.0,0.049079]
[1734115207789,0.00129704,101870.0,101860.0,0.14158059]
[1734115208581,0.00129704,101870.0,101860.0,0.049079]
[1734115209291,0.00129704,101870.0,101860.0,1.00238059]
[1734115209589,0.00129704,101870.0,101860.0,0.53608059]
[1734115209789,0.00129704,101870.0,101860.0,1.03608059]
[1734115211190,0.00129704,101870.0,101860.0,0.67528059]
[1734115211789,0.36209704,101870.0,101860.0,0.67528059]
[1734115212287,0.36209704,101870.0,101860.0,0.582779]
[1734115212486,0.62083009,101870.0,101860.0,0.049079]
[1734115212688,0.1184545,101870.0,101860.0,0.049079]
[1734115212882,0.00129704,101870.0,101860.0,0.50238059]
[1734115213105,0.00129704,101870.0,101860.0,1.00238059]
[1734115213393,0.00129704,101870.0,101860.0,1.03388059]
[1734115213588,0.00129704,101870.0,101860.0,0.67308059]
[1734115214296,0.00129704,101870.0,101860.0,0.17308059]
[1734115214485,0.05037104,101870.0,101860.0,0.080579]
[1734115214686,0.5283285,101870.0,101860.0,0.049079]
[1734115216190,0.67536538,101870.0,101860.0,0.049079]
[1734115217289,0.55820792,101870.0,101860.0,0.049079]
[1734115219191,0.22699306,101870.0,101860.0,0.049079]
[1734115219389,0.38625828,101870.0,101860.0,0.049079]
[1734115219784,0.22699306,101870.0,101860.0,0.049079]
[1734115219986,0.58779306,101870.0,101860.0,0.049079]
[1734115220190,0.74708131,101870.0,101860.0,0.28281164]
[1734115220393,0.20965929,101870.0,101860.0,0.28281164]
[1734115220591,0.37407871,101870.0,101860.0,0.28281164]
[1734115220892,0.37407923,101870.0,101860.0,0.049079]
[1734115221099,0.19012166,101870.0,101860.0,0.049079]
[1734115221298,0.14838662,101870.0,101860.0,0.28281164]
[1734115221892,0.14838662,101870.0,101860.0,0.37531323]
[1734115222095,0.14838662,101870.0,101860.0,0.87531323]
[1734115222290,0.14838662,101870.0,101860.0,0.37531323]
[1734115222686,0.14838662,101870.0,101860.0,0.87531323]
[1734115222900,0.14838662,101870.0,101860.0,0.37531323]
[1734115223291,0.14838662,101870.0,101860.0,0.87531323]
[1734115223496,0.14838662,101870.0,101860.0,0.40691323]
[1734115223797,0.14838662,101870.0,101860.0,0.90691323]
[1734115224195,0.14838662,101870.0,101860.0,0.40691323]
[1734115224399,0.14838662,101870.0,101860.0,0.90691323]
[1734115224895,0.14838662,101870.0,101860.0,0.40691323]
[1734115225092,0.14838662,101870.0,101860.0,0.90691323]
[1734115225504,0.14838662,101870.0,101860.0,0.40691323]
[1734115225892,0.14838662,101870.0,101860.0,0.90691323]
[1734115226097,0.14838662,101870.0,101860.0,0.40691323]
[1734115226503,0.14838662,101870.0,101860.0,0.90691323]
[1734115226992,0.14838662,101870.0,101860.0,1.26771323]
[1734115227193,0.11894944,101870.0,101860.0,1.32656346]
[1734115228287,0.26474198,101880.0,101860.0,1.97558573]
[1734115228487,0.26474198,101880.0,101870.0,0.76934728]
[1734115228700,0.1176524,101880.0,101870.0,0.76934728]
[1734115228894,0.1176524,101880.0,101870.0,1.26934728]
[1734115229690,0.02602772,101880.0,101870.0,1.56934728]
[1734115229995,0.02602772,101880.0,101870.0,1.62715846]
[1734115230189,0.02602772,101880.0,101870.0,1.56182485]
[1734115231390,0.14708958,101890.0,101880.0,0.049069]
[1734115231590,0.14708958,101890.0,101880.0,0.64446773]
[1734115232102,0.14708958,101890.0,101880.0,0.50237059]
[1734115232297,0.85796279,101900.0,101890.0,0.049065]
[1734115232504,0.049065,101890.0,101880.0,0.049068]
[1734115232804,0.22714186,101890.0,101880.0,0.049068]
[1734115233198,0.58923982,101890.0,101880.0,0.049068]
[1734115234805,0.22843982,101890.0,101880.0,0.049068]
[1734115235903,0.17937482,101890.0,101880.0,0.049068]
[1734115236299,0.54017482,101890.0,101880.0,0.049068]
[1734115236897,0.14817482,101890.0,101880.0,0.59487118]
[1734115237205,9.1e-07,101890.0,101880.0,1.39046991]
[1734115237391,9.1e-07,101890.0,101880.0,1.74845405]
[1734115237598,0.1005,101900.0,101890.0,0.049065]
[1734115237899,0.1005,101900.0,101890.0,1.23664288]
[1734115237900,0.1,101900.0,101890.0,1.23664288]
[1734115238303,0.1,101900.0,101890.0,0.73664288]
[1734115238601,0.1,101900.0,101890.0,1.23664288]
[1734115239107,0.1005,101900.0,101890.0,1.23664288]
[1734115241108,0.1,101900.0,101890.0,1.00236659]
[1734115241902,0.1005,101900.0,101890.0,1.00236659]
[1734115243009,0.1,101900.0,101890.0,1.00236659]
[1734115244205,0.1,101900.0,101890.0,0.409865]
[1734115244505,0.1,101900.0,101890.0,0.51423335]
[1734115249304,0.1,101900.0,101890.0,0.42173176]
[1734115249610,0.14906,101900.0,101890.0,0.42173176]
[1734115249811,0.14906,101900.0,101890.0,0.06093176]
[1734115250501,0.50986,101900.0,101890.0,0.06093176]
[1734115250897,0.50986,101900.0,101880.0,0.64156959]
[1734115250898,0.24156159,101900.0,101870.0,1.68071888]
[1734115251105,0.143067,101890.0,101880.0,0.049066]
[1734115251301,0.15222916,101890.0,101880.0,0.049066]
[1734115252104,0.60553075,101890.0,101880.0,0.049066]
[1734115252502,0.15222916,101890.0,101880.0,0.049066]
[1734115252701,0.51302916,101890.0,101880.0,0.049066]
[1734115253108,0.15222916,101890.0,101880.0,0.049066]
[1734115253407,0.15222916,101890.0,101880.0,0.14156759]
[1734115253714,0.51302916,101890.0,101880.0,0.049066]
[1734115254204,0.15222916,101890.0,101880.0,0.049066]
[1734115254406,0.15222916,101890.0,101880.0,0.14156759]
[1734115254601,0.10316216,101890.0,101880.0,0.50236759]
[1734115254812,0.15222716,101890.0,101880.0,0.14156759]
[1734115255110,0.15222716,101890.0,101880.0,0.50236759]
[1734115255111,0.10316216,101890.0,101880.0,0.50236759]
[1734115255711,0.10316216,101890.0,101880.0,0.409866]
[1734115256107,0.10316216,101890.0,101880.0,0.64414229]
[1734115256307,0.10316216,101890.0,101880.0,0.73664388]
[1734115256502,0.00916216,101890.0,101880.0,1.23664388]
[1734115256808,0.00916216,101890.0,101880.0,1.29994388]
[1734115257215,0.00916216,101890.0,101880.0,1.59252675]
[1734115259614,0.00916216,101890.0,101880.0,1.35825046]
[1734115260916,0.1,101900.0,101890.0,0.049065]
[1734115261117,0.1,101900.0,101890.0,0.64419285]
[1734115261314,0.14906,101900.0,101890.0,0.64419285]
[1734115261512,0.60236159,101900.0,101890.0,0.28339285]
[1734115261718,0.049065,101890.0,101880.0,0.64419385]
[1734115261918,0.17266659,101890.0,101880.0,0.64419385]
[1734115262216,0.113265,101890.0,101880.0,0.049066]
[1734115262518,0.62094186,101890.0,101880.0,0.049066]
[1734115263215,0.049069,101880.0,101870.0,0.65627353]
[1734115263415,0.17397059,101880.0,101870.0,0.65627353]
[1734115264117,0.081469,101880.0,101870.0,0.65627353]
[1734115265814,0.0324,101880.0,101870.0,0.65627353]
[1734115266420,0.081469,101880.0,101870.0,0.65627353]
[1734115269011,0.24687686,101900.0,101880.0,0.049069]
[1734115269217,0.1,101900.0,101890.0,1.0975442]
[1734115269410,0.1,101900.0,101890.0,1.39012707]
[1734115269738,0.01223465,101950.0,101910.0,0.049055]
[1734115270021,0.02406591,101940.0,101930.0,0.3608]
[1734115270217,0.09250159,101940.0,101930.0,0.3608]
[1734115270423,0.409836,101950.0,101930.0,0.3608]
[1734115270424,0.67917029,101950.0,101930.0,0.409842]
[1734115270612,0.23923429,101940.0,101930.0,0.409842]
[1734115270816,0.28827529,101940.0,101930.0,0.409842]
[1734115271320,0.85525053,101950.0,101940.0,0.049041]
[1734115271531,0.01483124,101940.0,101930.0,0.3608]
[1734115271720,0.01483124,101940.0,101920.0,0.8608]
[1734115271721,0.09250159,101940.0,101920.0,0.3608]
[1734115271923,0.02404619,101930.0,101920.0,0.409847]
[1734115272123,0.17404659,101930.0,101920.0,0.409847]
[1734115272426,0.081545,101930.0,101920.0,0.409847]
[1734115273726,0.081545,101930.0,101920.0,0.309847]
[1734115273920,0.082045,101930.0,101920.0,0.309847]
[1734115275018,0.0325,101930.0,101920.0,0.309847]
[1734115275914,0.033,101930.0,101920.0,0.309847]
[1734115276821,0.082045,101930.0,101920.0,0.049047]
[1734115277126,0.081545,101930.0,101920.0,0.049047]
[1734115277323,0.17404659,101930.0,101920.0,0.049047]
[1734115277533,0.04905,101920.0,101910.0,0.06030955]
[1734115277715,0.40985,101920.0,101910.0,0.06030955]
[1734115278429,0.44085,101920.0,101910.0,0.06030955]
[1734115278733,0.53335159,101920.0,101910.0,0.06030955]
[1734115279325,0.44085,101920.0,101910.0,0.06030955]
[1734115279827,0.44085,101920.0,101900.0,0.440355]
[1734115279828,0.049055,101910.0,101900.0,0.440355]
[1734115280029,0.14155659,101910.0,101900.0,0.409855]
[1734115280819,0.14155659,101910.0,101900.0,0.049055]
[1734115282028,0.049055,101910.0,101900.0,0.049055]
[1734115282226,0.440852,101920.0,101910.0,0.049055]
[1734115282532,0.53335359,101920.0,101910.0,0.049055]
[1734115283127,0.440852,101920.0,101910.0,0.049055]
[1734115284732,0.53335359,101920.0,101910.0,0.049055]
[1734115285431,0.440852,101920.0,101910.0,0.049055]
[1734115287736,0.049055,101910.0,101900.0,0.409857]
[1734115291042,0.049055,101910.0,101900.0,0.049057]
[1734115294246,0.04906,101900.0,101890.0,0.42132915]
[1734115294546,0.11176,101900.0,101890.0,0.42132915]
[1734115295546,0.47256,101900.0,101890.0,0.01146515]
[1734115295741,0.59656159,101900.0,101880.0,0.31472044]
[1734115295943,0.41903535,101890.0,101880.0,0.08113915]
[1734115296140,0.049065,101890.0,101880.0,0.67602044]
[1734115296847,0.049065,101890.0,101880.0,0.64592044]
[1734115297032,0.049065,101890.0,101880.0,0.41133915]
[1734115297352,0.049065,101890.0,101880.0,0.64542044]
[1734115297736,0.049065,101890.0,101880.0,0.64642044]
[1734115297938,0.049065,101890.0,101880.0,0.64692044]
[1734115298939,0.049065,101890.0,101880.0,0.64642044]
[1734115299534,0.14156659,101890.0,101880.0,0.64642044]
[1734115300042,0.14156659,101890.0,101880.0,0.59785344]
[1734115300546,0.14156659,101890.0,101880.0,0.65848225]
[1734115300746,0.049065,101890.0,101880.0,0.65848225]
[1734115300948,0.049065,101890.0,101880.0,0.65798225]
[1734115301850,0.61948739,101890.0,101880.0,0.00247215]
[1734115302042,0.61948739,101890.0,101870.0,0.049072]
[1734115302247,0.049074,101870.0,101860.0,0.64406272]
[1734115302449,0.14157559,101870.0,101860.0,0.59498572]
[1734115302740,0.17427559,101870.0,101860.0,0.5366161]
[1734115302946,0.1661918,101880.0,101870.0,0.049574]
[1734115303143,0.1661918,101880.0,101870.0,0.76845688]
[1734115303144,0.049071,101880.0,101870.0,0.76845688]
[1734115303445,0.049071,101880.0,101870.0,1.26945688]
[1734115304150,0.049071,101880.0,101870.0,1.26795688]
[1734115304538,0.049071,101880.0,101870.0,1.17545529]
[1734115304948,0.049071,101880.0,101870.0,1.17595529]
[1734115306153,0.049071,101880.0,101870.0,1.17545529]
[1734115306956,0.049071,101880.0,101870.0,1.17595529]
[1734115307445,0.1661878,101890.0,101880.0,0.049069]
[1734115308645,0.1171208,101890.0,101880.0,0.50237059]
[1734115308846,0.7682145,101900.0,101890.0,0.049065]
[1734115309248,0.7367145,101900.0,101890.0,0.049065]
[1734115309451,0.82921609,101900.0,101890.0,0.049065]
[1734115309650,0.86221609,101900.0,101890.0,0.049065]
[1734115310340,0.86221609,101900.0,101880.0,0.59488129]
[1734115310650,0.05820043,101890.0,101880.0,0.409867]
[1734115310849,0.049065,101890.0,101880.0,0.409867]
[1734115311050,0.14156659,101890.0,101880.0,0.409867]
[1734115311252,0.049065,101890.0,101880.0,0.049067]
[1734115311546,0.049069,101880.0,101870.0,1.14445429]
[1734115311745,0.20357059,101880.0,101870.0,0.410373]
[1734115311957,0.2588898,101880.0,101870.0,0.410373]
[1734115312556,0.2281898,101880.0,101870.0,0.50287459]
[1734115312754,0.111069,101880.0,101870.0,0.76835588]
[1734115312946,0.4779208,101890.0,101870.0,1.26785588]
[1734115313147,0.5269868,101890.0,101880.0,0.14157059]
[1734115313347,0.5269868,101890.0,101880.0,0.049069]
[1734115315161,0.5279868,101890.0,101880.0,0.049069]